Cogmind - Beta 13 @@@ ROGUE MODE // 2024.04.21 @ 14:02:19 Player: ThatBishHoly Result: Destroyed by G-47 Trooper with Particle Gun Performance ------------- Evolutions (2) 1000 Regions Visited (3) 600 Robots Destroyed (43) 215 Value Destroyed (1005) 1005 Prototype IDs (1) 20 Alien Tech Used (0) 0 Bonus (115) 115 TOTAL SCORE: 2955 Bonus ------- High Alert Combat Kills 115 Cogmind --------- Core Integrity 0/550 Matter 75/300 Energy 100/100 System Corruption 0% Temperature Cool (97) Movement Walking (120) Location -8/Materials Parts ------- > --- POWER (2) -------- (None) > --- PROPULSION (4) --- Carbon-fiber Leg > --- UTILITY (3) ------ Melee Analysis Suite > --- WEAPON (2) ------- (None) > --- INVENTORY (5) ---- Large Storage Unit Peak State ------------ > --- POWER ------------ Ion Engine > --- PROPULSION ------- Armored Treads Armored Treads Armored Treads Armored Treads > --- UTILITY ---------- Improved Light Armor Plating Improved Light Armor Plating Improved Light Armor Plating > --- WEAPON ----------- Improved Assault Rifle Rocket Launcher > --- INVENTORY -------- Improved Light Armor Plating Hacking Suite [Rating: 27] Favorites ----------- Power Light Nuclear Core Engine Ion Engine Power Core Light Nuclear Core Propulsion Armored Treads Treads Armored Treads Leg Carbon-fiber Leg Utility Improved Light Armor Plating Device Hardlight Generator Storage Small Storage Unit Processor Melee Analysis Suite Hackware Hacking Suite Protection Improved Light Armor Plating Weapon Rocket Launcher Energy Gun Medium Laser Ballistic Gun Improved Assault Rifle Ballistic Cannon Improved Light Cannon Launcher Rocket Launcher Special Melee Weapon Improved Datajack Build | -11 -10 -9 -8 ------- Run | Yrd Mat Mat Mat Slots Evolved 4 | . . 2 2 Power 1 | . . . 1 Propulsion 2 | . . 2 . Utility 1 | . . . 1 Weapon . | . . . . Parts Attached 47 | 6 2 21 18 Power 8 | 1 . 3 4 Engine 5 | 1 . 3 1 Core 3 | . . . 3 Reactor . | . . . . Propulsion 8 | 2 . 4 2 Treads 7 | 2 . 4 1 Leg 1 | . . . 1 Wheel . | . . . . Hover . | . . . . Flight . | . . . . Utility 14 | 1 1 6 6 Device 2 | . . . 2 Storage 2 | 1 1 . . Processor 1 | . . . 1 Hackware 2 | . . 1 1 Protection 7 | . . 5 2 Artifact . | . . . . Weapon 17 | 2 1 8 6 Energy Gun 5 | 1 . 2 2 Energy Cannon . | . . . . Ballistic Gun 4 | 1 . 3 . Ballistic Cannon 1 | . . 1 . Launcher 6 | . 1 2 3 Special Weapon . | . . . . Impact Weapon . | . . . . Slashing Weapon . | . . . . Piercing Weapon . | . . . . Special Melee Weapon 1 | . . . 1 Unidentified Prototypes 1 | . . 1 . Parts Lost 22 | . . 4 18 Power 6 | . . 2 4 Propulsion 5 | . . . 5 Utility 6 | . . . 6 Weapon 5 | . . 2 3 Highest Loss Streak 9 | . . 3 9 To Critical Strikes . | . . . . Average Slot Usage (%) 79 | . 97 91 62 Engine 6 | . 14 8 3 Core 3 | . . . 7 Treads 28 | . 28 40 16 Device 4 | . . . 9 Storage 6 | . 25 9 . Hackware 3 | . . 3 5 Protection 7 | . . 9 7 Energy Gun 5 | . 14 6 1 Ballistic Gun 1 | . . 3 . Launcher 7 | . 13 8 4 Special Melee Weapon 2 | . . . 4 Naked Turns . | . . . . Heaviest Build 23 | 12 15 23 23 Greatest Support 80 | 40 40 80 80 Greatest Overweight (x) 1 | . . . 1 Average Overweight (x) . | . . . . Largest Inventory Capacity 8 | 8 8 8 5 Average Capacity 6 | 6 8 6 5 Most Carried 8 | 5 2 8 5 Average Carried 3 | 1 . 4 3 Final Capacity 8 | 8 8 5 5 Final Carried 4 | . 1 4 1 Class Distribution -------------------- 100% | Mutant Dominant Class ---------------- Mutant | -10/Materials Mutant | -9/Materials Mutant | -8/Materials Resources | -11 -10 -9 -8 ----------- Run | Yrd Mat Mat Mat Matter Collected 700 | 227 1 312 160 Remotely . | . . . . Salvage Created 798 | . 1 541 256 Parts 56 | . 3 37 16 Haulers Intercepted 1 | . . 1 . Recyclers Shooed . | . . . . Parts Field Recycled . | . . . . Retrieved Matter . | . . . . Parts Self-Destructed . | . . . . Prevented . | . . . . Kills | -11 -10 -9 -8 ------- Run | Yrd Mat Mat Mat Combat Hostiles Destroyed 35 | . 3 14 18 Melee 4 | . . . 4 Guns 13 | . . 9 4 Cannons 1 | . . 1 . AOE 17 | . 3 4 10 Classes Destroyed 8 | . 1 6 1 Worker 3 | . . 3 . Builder 1 | . . . 1 Hauler 1 | . . 1 . Recycler 1 | . . 1 . Operator 2 | . . 2 . Swarmer 18 | . 3 5 10 Grunt 12 | . . 4 8 Sentry 5 | . . 5 . Best Kill Streak 5 | . 3 5 5 Combat Bots Only 5 | . 3 3 5 Max Kills in Single Turn 4 | . 1 4 3 Gunslinging . | . . . . Exploded 3 | . 1 1 3 Melee 1 | . . . 1 Uniques/NPCs Destroyed . | . . . . Combat | -11 -10 -9 -8 -------- Run | Yrd Mat Mat Mat Hostile Shots Fired 497 | . 21 192 284 Missed 131 | . 5 48 78 Damage Taken 4098 | . 229 1667 2202 Core 799 | . 68 175 556 Absorbed by Shields 220 | . . . 220 Redirected to Shielding 105 | . . . 105 Regen/Repaired (Parts) 40 | . . . 40 Core Remaining (%) 76 | 100 72 56 . Volleys Fired 74 | . 7 36 31 Largest 2 | . 2 2 2 Hottest 100 | . 80 100 65 Shots Fired 105 | . 13 60 32 Gun 65 | . 7 36 22 Cannon 4 | . . 4 . Launcher 36 | . 6 20 10 Special . | . . . . Kinetic 20 | . . 19 1 Thermal 34 | . 7 6 21 Explosive 36 | . 6 20 10 Electromagnetic 15 | . . 15 . Robot Hit Streak 10 | . 4 6 10 Robot Miss Streak 5 | . 2 5 5 Penetration Max . | . . . . Secondary Targets . | . . . . Shots Hit Robots 62 | . 5 33 24 Core Hits 84 | . 2 34 48 Critical Kills . | . . . . Critical Parts Destroyed . | . . . . Critical Strikes 1 | . . 1 . Burn 1 | . . 1 . Melee Attacks 1 | . . . 1 Impact . | . . . . Slashing . | . . . . Piercing . | . . . . Sneak Attacks . | . . . . Combat Hostiles . | . . . . Follow-up Attacks . | . . . . Damage Inflicted 2631 | . 332 1112 1187 Guns 727 | . 51 356 320 Cannons 43 | . . 43 . Explosions 1824 | . 281 713 830 Melee . | . . . . Ramming 37 | . . . 37 Kinetic 232 | . . 215 17 Thermal 405 | . 51 51 303 Explosive 1824 | . 281 713 830 Electromagnetic 133 | . . 133 . Impact . | . . . . Slashing . | . . . . Piercing . | . . . . Highest Corruption . | . . . . Average Corruption . | . . . . Corruption Purged . | . . . . Corruption Blocked . | . . . . Overload Shots . | . . . . Overflow Damage 64 | . 19 . 45 Projectiles . | . . . . Explosions 64 | . 19 . 45 Melee . | . . . . Knockbacks 1 | . . 1 . Impact . | . . . . Kinetic 1 | . . 1 . Secondary . | . . . . Self-Inflicted Damage 283 | . 111 113 59 Shots 10 | . 4 3 3 Rammed 15 | . . . 15 Targets Rammed 29 | . . . 29 Kicked 10 | . . . 10 Crushed 4 | . . . 4 Highest Temperature 477 | . 90 136 477 Average Temperature 103 | . 46 36 265 Received Heat Transfer 1174 | . . 333 841 Effects 2 | . . . 2 Shutdowns 1 | . . . 1 Interference 1 | . . . 1 Siege Activations . | . . . . Robots Corrupted . | . . . . Combat Hostiles . | . . . . Parts Fried 1 | . . 1 . Impact Corruptions . | . . . . Robots Melted . | . . . . Combat Hostiles . | . . . . Parts Melted 1 | . 1 . . Heat Transferred 745 | . 148 222 375 Parts Sabotaged . | . . . . Parts Stolen . | . . . . Parts Stripped . | . . . . Power Chain Reactions . | . . . . Alert | -11 -10 -9 -8 ------- Run | Yrd Mat Mat Mat Peak Influence 594 | . 122 594 551 Initial 250 | . . 51 250 Average 274 | . 26 242 389 Maximum Alert Level 2 | . . 2 2 Low Security (%) 34 | 100 100 48 . Level 1 32 | . . 34 40 Level 2 32 | . . 17 59 Level 3 . | . . . . Level 4 . | . . . . Level 5 . | . . . . High Security . | . . . . Max Security . | . . . . Squads Dispatched 7 | . 1 3 3 Investigation 3 | . 1 2 . Extermination . | . . . . Reinforcement 4 | . . 1 3 Assault . | . . . . Garrison . | . . . . Intercept . | . . . . Searches Triggered . | . . . . Construction Impeded 2 | . . . 2 Haulers Reinforced . | . . . . Active Scanning Responses . | . . . . Cargo Convoy Interrupts . | . . . . Stealth | -11 -10 -9 -8 --------- Run | Yrd Mat Mat Mat Distress Signals . | . . . . Communications Jammed . | . . . . Distress Signals . | . . . . Times Spotted 48 | . 5 21 22 Peak Tracking Total 7 | . 3 7 5 Tactical Retreats 4 | . . 3 1 Traps | -11 -10 -9 -8 ------- Run | Yrd Mat Mat Mat Traps Triggered . | . . . . Indirectly . | . . . . Trap Hack Attempts . | . . . . Triggered . | . . . . Disarmed . | . . . . Reprogrammed . | . . . . Reused . | . . . . Traps Extracted . | . . . . Installed . | . . . . Triggered . | . . . . Machines | -11 -10 -9 -8 ---------- Run | Yrd Mat Mat Mat Machines Disabled 4 | . . 2 2 Max in Single Turn 1 | . . 1 1 Machines Repaired . | . . . . Machines Dismantled . | . . . . Machines Sabotaged . | . . . . Overloaded Fab Kills . | . . . . Hacking | -11 -10 -9 -8 --------- Run | Yrd Mat Mat Mat Machines Accessed 8 | . 2 4 2 Terminals 4 | . 2 2 . Fabricators . | . . . . Repair Stations 1 | . . . 1 Recycling Units 2 | . . 1 1 Scanalyzers 1 | . . 1 . Garrison Access . | . . . . Total Hacks 30 | . 6 20 4 Successful 20 | . 2 15 3 Failed 10 | . 4 5 1 Catastrophic . | . . . . Database Lockouts . | . . . . Manual . | . . . . Terminals 15 | . 6 9 . Fabricators . | . . . . Repair Stations 2 | . . . 2 Recycling Units 11 | . . 9 2 Scanalyzers 2 | . . 2 . Garrison Access . | . . . . Terminal Hacks 8 | . 2 6 . Maintenance Status 1 | . . 1 . Security Status 1 | . . 1 . Investigation Status 1 | . . 1 . Assault Status 1 | . . 1 . Recall Investigation 1 | . . 1 . Hauler Manifests 1 | . . 1 . Registered Components 1 | . 1 . . Zone Layout 1 | . 1 . . Fabricator Hacks . | . . . . Repair Station Hacks 2 | . . . 2 Scan Component 1 | . . . 1 Repair 1 | . . . 1 Recycling Unit Hacks 8 | . . 7 1 Recycle Component 4 | . . 4 . Process 1 | . . 1 . Report Inventory 1 | . . 1 . Retrieve Matter 1 | . . . 1 Retrieve Components 1 | . . 1 . Scanalyzer 2 | . . 2 . Insert Component 1 | . . 1 . Analyze 1 | . . 1 . Garrison Access Hacks . | . . . . Unauthorized Hacks . | . . . . Terminals . | . . . . Fabricators . | . . . . Repair Stations . | . . . . Recycling Units . | . . . . Scanalyzers . | . . . . Garrison Access . | . . . . Data Cores Recovered . | . . . . Used . | . . . . Hacking Detections 7 | . 2 3 2 Full Trace Events 2 | . . 2 . Feedback Events . | . . . . Feedback Blocked . | . . . . Robot Schematics Acquired . | . . . . Robots Built . | . . . . Authchips . | . . . . Time . | . . . . Total Robot Build Rating . | . . . . Part Schematics Acquired 1 | . . 1 . Parts Built . | . . . . Authchips . | . . . . Time . | . . . . Total Part Build Rating . | . . . . Parts Repaired 1 | . . . 1 Time 38 | . . . 38 Parts Recycled 4 | . . 4 . Recycled Matter 59 | . . 59 . Retrieved Matter . | . . . . Retrieved Components 2 | . . 2 . Parts Scanalyzed 1 | . . 1 . Part Schematics Acquired 1 | . . 1 . Parts Damaged . | . . . . Bothacking | -11 -10 -9 -8 ------------ Run | Yrd Mat Mat Mat Used RIF Installer . | . . . . Robots Hacked 1 | . . . 1 Non-combat . | . . . . Combat 1 | . . . 1 Robot Hacks Applied 1 | . . . 1 parse_system 1 | . . . 1 Relay Couplers Released . | . . . . Fabnet Peak Effective % . | . . . . Robots Rewired . | . . . . Allies Hacked . | . . . . Hacks Repelled . | . . . . Allies | -11 -10 -9 -8 -------- Run | Yrd Mat Mat Mat Total Allies . | . . . . Largest Group . | . . . . Highest-Rated Group . | . . . . Highest-Rated Ally . | . . . . Total Orders . | . . . . Ally Attacks . | . . . . Total Damage . | . . . . Kills . | . . . . Allies Corrupted . | . . . . Allies Melted . | . . . . Intel | -11 -10 -9 -8 ------- Run | Yrd Mat Mat Mat Robot Analysis Total . | . . . . Derelict Logs Recovered . | . . . . Drone Launches . | . . . . Drone Recoveries . | . . . . Exploration | -11 -10 -9 -8 ------------- Run | Yrd Mat Mat Mat Turns Passed 1749 | 58 176 776 739 Spaces Moved 794 | 47 90 359 298 Core 25 | 25 . . . Treads 766 | 22 90 359 295 Legs 3 | . . . 3 Wheels . | . . . . Hover . | . . . . Flight . | . . . . Fastest Speed 50 | 50 160 160 120 Average Speed 168 | 101 160 168 181 Slowest Speed 250 | 160 160 170 250 Overloaded Moves . | . . . . Propulsion Burnouts . | . . . . Robots Hopped . | . . . . Cave-ins Triggered . | . . . . Exploration Rate (%) 20 | 3 22 29 29 Regions Visited 3 Branch Regions . Pre-discovered Areas . | . . . . Known Exits Taken . | . . . . Unknown Exits Taken 3 | 1 1 1 . Scrap Searched . | . . . . Spaces Dug . | . . . . Terrain Destroyed 277 | . 40 186 51 Melee . | . . . . Projectile . | . . . . AOE 277 | . 40 186 51 Terrain Rammed . | . . . . Walls Destroyed . | . . . . Machines Disabled . | . . . . Actions | -11 -10 -9 -8 --------- Run | Yrd Mat Mat Mat Total 1089 | 57 109 470 453 Wait 79 | . 9 18 52 Move 791 | 46 89 358 298 Hop . | . . . . Pick Up 48 | 5 2 25 16 Fast Attach 1 | 1 . . . Attach 28 | 5 1 6 16 Detach 2 | . . . 2 Swap 18 | . 1 15 2 Drop 18 | . . 12 6 Fire 74 | . 7 36 31 Melee 1 | . . . 1 Ram . | . . . . Kick 10 | . . . 10 Crush 19 | . . . 19 Escape Stasis . | . . . . Rewire . | . . . . Trap . | . . . . Miscellaneous . | . . . . Route ------- -11/Scrapyard -10/Materials -9/Materials -8/Materials (discovered 1 exit: [*Fac]) History --------- Turn | Location | Event 7 | -11/Scrapyard | Discovered new exit (range 15) 59 | -11/Scrapyard | Entered Materials 215 | -10/Materials | Discovered new exit (range 14) 235 | -10/Materials | Entered another Materials area 235 | -9/Materials | Evolved 2 slots: Propulsion x2 315 | -9/Materials | Build established: Mutant 678 | -9/Materials | Discovered new exit (range 14) 929 | -9/Materials | Lost 3 parts (1p2w) 1011 | -9/Materials | Entered another Materials area 1011 | -8/Materials | Evolved 2 slots: Power x1, Utility x1 1351 | -8/Materials | Lost 4 parts (1p2n1u) 1401 | -8/Materials | Repaired Lgt. Nuclear Core 1493 | -8/Materials | Discovered new exit (range 9) 1654 | -8/Materials | Core integrity fell below 50% 1734 | -8/Materials | Core integrity fell below 20% 1750 | -8/Materials | Destroyed by G-47 Trooper with Particle Gun Last Messages --------------- 01725_ Power failure, Lgt. Nuclear Core shutdown. 01727_ Lgt. Nuclear Core destroyed. 01727_ G-47 Trooper destroyed. 01733_ Overheating: System interference. 01733_ Spread Laser temporarily disabled. 01733_ Spread Laser destroyed. 01734_ K-01 Serf collects debris. 01737_ R-06 Scavenger collects Imp. Heat Sink. 01739_ Kicked G-47 Trooper. 01740_ K-01 Serf collects debris. 01741_ Kicked G-47 Trooper out of the way. 01742_ R-06 Scavenger collects Welding Torch. 01742_ Kicked G-47 Trooper out of the way. 01743_ K-01 Serf collects debris. 01744_ Connecting with Terminal... 01744_ Kicked G-47 Trooper. 01747_ K-01 Serf collects debris. 01747_ Kicked G-47 Trooper. 01748_ Imp. Propulsion Shielding destroyed. 01748_ Kicked G-47 Trooper. Map ----- +----------------------------------------------------+ | ????????????????????????????????? | | ????????????????????????????????? | | ????????????????????????????????? | | ????????????????????????????????? | | ????????????????????????????????? | | ????????????????????????????????? | | ????????????????????????????????? | | ????????????????????????????????? | | ????????????????????????????????? | | ????????????????????????????????? | | ????????????????????????????????? | | ???????????????????????????? ???? | | ???????? ??????????????????? #??? | | ???????? ????????????????### ##?? | | ???????? ???????????????? #?? | | ???????# ???????????????? +?? | | ???????# ???????????????? #?? | | ???????# #??????????????? #?? | | ???????# ??????????????# #?? | | ???????# #??????????????# +?? | | ???????# #??????????????# #?? | | ?????### ###????????????# #?? | | ?????# ############## #?? | | ?????# #???? | | ?????# T #???? | | ?????# g@ r r #???? | | ?????# mg ## ########### #???? | | ????## k # #????????# #???? | | ????# % ## #????????# #???? | | ????#! !#####????????# #???? | | ????##!! !##????????????# /???? | | ?????######?????????????# ##??? | | ????????????????????????# #???? | | ????????????????????????# #???? | | ?????????????????######## %#?"?? | | ?????????????????# """ # !#"??? | | ?????????????????# """ # #"??? | | ?????????????????# """ + / ??? | | ?????????????????# # ##### | | ?????????????????# # # | | ?????????????????# # # | | ?????????????????######## # " | | ????????????????????????# # "" | | ????????????????????????# # "" | | ???????????????????????## # "" | | ?????????????????######## # " | | ?????????????????# ### # | | ?????????????????# ### ###+# | | ?????????????????# ]! # # | | ?????????????????#] ! ### ! | +----------------------------------------------------+ Best States ------------- Heat Dissipation 45 Energy Generation 23 Energy Capacity 265 Matter Stores 267 Matter Capacity 400 Sight Range 16 Terrain Scan Density 10 Armor Coverage 450 Propulsion Shielding 66 Evasion (%) 50 Melee Accuracy 5 Recoil Reduction 4 Offensive Hacking 10 Item Schematics ----------------- Grenade Launcher | -9/Materials | Scanalyzed Robot Schematics ------------------ None Fabricated ------------ Nothing Alien Tech Used ----------------- None Achievements -------------- None Challenges ------------ None Game ------ Seed DamperDrainedProtection Manual? 0 Play Time 00:29:57 Cumulative 10.2 hours Start 2024.04.21 @ 13:31:49 End 2024.04.21 @ 14:02:19 Sessions 1 Manual Loads 0 Difficulty Rogue Special Mode None Game No. 27 Rogue 27 Adventurer 0 Explorer 0 Win Type - Total 0 Types 0/0/0/0/0/0/0/0/0 Lore% 12 Gallery% 22 Achievement% 19 Wizard Run 0 Options --------- Layout 1 ASCII 0 Keyboard 0 Movement Mouse Keybinds 0 Fullscreen 1 Font 32/SmallcapsGlow Map View 130x35 Zoom Use 0% Tactical HUD 1 Map Filters NONE Filters NONE Steam 1 RUN: 98c59c44-0684-4d0e-bcad-07f72cc15e26